Workbook

Sheet nmtf
A1: escort | B1: shopping | C1: othmaint | D1: othdiscr | E1: eatout | F1: social | G1: ID | H1: tm1 | I1: asim | J1: diff | K1: pdiff | N1: escort | O1: shopping | P1: othmaint | Q1: othdiscr | R1: eatout | S1: social | T1: total
A2: 0 | B2: 0 | C2: 0 | D2: 0 | E2: 0 | F2: 0 | G2: 0 | H2: 465,131 | I2: 462,942 | J2: =I2-H2 -> (2,189) | K2: =J2/H2 -> -0% | M2: tm1 | N2: =SUMPRODUCT($H2:$H97,A2:A97) -> 88,607 | O2: =SUMPRODUCT($H2:$H97,B2:B97) -> 104,523 | P2: 57,296 | Q2: 83,019 | R2: 41,279 | S2: =SUMPRODUCT($H2:$H97,F2:F97) -> 25,533 | T2: =SUM(N2:S2) -> 400,257
A3: 0 | B3: 0 | C3: 0 | D3: 1 | E3: 0 | F3: 0 | G3: 1 | H3: 50,371 | I3: 50,415 | J3: =I3-H3 -> 44 | K3: =J3/H3 -> 0% | M3: asim | N3: =SUMPRODUCT($I2:$I97,A2:A97) -> 90,234 | O3: =SUMPRODUCT($I2:$I97,B2:B97) -> 105,398 | P3: 57,922 | Q3: 83,272 | R3: 41,979 | S3: 25,710 | T3: =SUM(N3:S3) -> 404,515
A4: 0 | B4: 0 | C4: 0 | D4: 0 | E4: 0 | F4: 1 | G4: 2 | H4: 14,422 | I4: 14,414 | J4: (8) | K4: -0% | M4: diff | N4: =N3-N2 -> 1,627 | O4: =O3-O2 -> 875 | P4: 626 | Q4: 253 | R4: 700 | S4: 177 | T4: 4,258
A5: 0 | B5: 0 | C5: 0 | D5: 1 | E5: 0 | F5: 1 | G5: 3 | H5: 1,786 | I5: 1,682 | J5: (104) | K5: -6% | M5: pdiff | N5: =N4/N3 -> 2% | O5: =O4/O3 -> 1% | P5: 1% | Q5: 0% | R5: 2% | S5: =S4/S3 -> 1% | T5: 1%
A6: 0 | B6: 0 | C6: 0 | D6: 0 | E6: 1 | F6: 0 | G6: 4 | H6: 23,188 | I6: 23,525 | J6: 337 | K6: 1%
A7: 0 | B7: 0 | C7: 0 | D7: 1 | E7: 1 | F7: 0 | G7: 5 | H7: 3,284 | I7: 3,157 | J7: (127) | K7: -4%
A8: 0 | B8: 0 | C8: 0 | D8: 0 | E8: 1 | F8: 1 | G8: 6 | H8: 806 | I8: 852 | J8: 46 | K8: 6%
A9: 0 | B9: 0 | C9: 0 | D9: 1 | E9: 1 | F9: 1 | G9: 7 | H9: 197 | I9: 197 | J9: 0 | K9: 0%
A10: 0 | B10: 0 | C10: 1 | D10: 0 | E10: 0 | F10: 0 | G10: 8 | H10: 31,739 | I10: 32,186 | J10: 447 | K10: 1%
A11: 0 | B11: 0 | C11: 1 | D11: 1 | E11: 0 | F11: 0 | G11: 9 | H11: 4,374 | I11: 4,405 | J11: 31 | K11: 1%
A12: 0 | B12: 0 | C12: 1 | D12: 0 | E12: 0 | F12: 1 | G12: 10 | H12: 1,305 | I12: 1,226 | J12: (79) | K12: -6%
A13: 0 | B13: 0 | C13: 1 | D13: 1 | E13: 0 | F13: 1 | G13: 11 | H13: 251 | I13: 250 | J13: (1) | K13: -0%
A14: 0 | B14: 0 | C14: 1 | D14: 0 | E14: 1 | F14: 0 | G14: 12 | H14: 1,989 | I14: 1,918 | J14: (71) | K14: -4%
A15: 0 | B15: 0 | C15: 1 | D15: 1 | E15: 1 | F15: 0 | G15: 13 | H15: 440 | I15: 462 | J15: 22 | K15: 5%
A16: 0 | B16: 0 | C16: 1 | D16: 0 | E16: 1 | F16: 1 | G16: 14 | H16: 106 | I16: 128 | J16: 22 | K16: 21%
A17: 0 | B17: 0 | C17: 1 | D17: 1 | E17: 1 | F17: 1 | G17: 15 | H17: 21 | I17: 13 | J17: (8) | K17: -38%
A18: 0 | B18: 1 | C18: 0 | D18: 0 | E18: 0 | F18: 0 | G18: 16 | H18: 62,670 | I18: 62,978 | J18: 308 | K18: 0%
A19: 0 | B19: 1 | C19: 0 | D19: 1 | E19: 0 | F19: 0 | G19: 17 | H19: 9,383 | I19: 9,343 | J19: (40) | K19: -0%
A20: 0 | B20: 1 | C20: 0 | D20: 0 | E20: 0 | F20: 1 | G20: 18 | H20: 2,491 | I20: 2,552 | J20: 61 | K20: 2%
A21: 0 | B21: 1 | C21: 0 | D21: 1 | E21: 0 | F21: 1 | G21: 19 | H21: 588 | I21: 570 | J21: (18) | K21: -3%
A22: 0 | B22: 1 | C22: 0 | D22: 0 | E22: 1 | F22: 0 | G22: 20 | H22: 4,158 | I22: 4,226 | J22: 68 | K22: 2%
A23: 0 | B23: 1 | C23: 0 | D23: 1 | E23: 1 | F23: 0 | G23: 21 | H23: 1,101 | I23: 1,120 | J23: 19 | K23: 2%
A24: 0 | B24: 1 | C24: 0 | D24: 0 | E24: 1 | F24: 1 | G24: 22 | H24: 258 | I24: 273 | J24: 15 | K24: 6%
A25: 0 | B25: 1 | C25: 0 | D25: 1 | E25: 1 | F25: 1 | G25: 23 | H25: 44 | I25: 66 | J25: 22 | K25: 50%
A26: 0 | B26: 1 | C26: 1 | D26: 0 | E26: 0 | F26: 0 | G26: 24 | H26: 6,994 | I26: 7,038 | J26: 44 | K26: 1%
A27: 0 | B27: 1 | C27: 1 | D27: 1 | E27: 0 | F27: 0 | G27: 25 | H27: 1,564 | I27: 1,573 | J27: 9 | K27: 1%
A28: 0 | B28: 1 | C28: 1 | D28: 0 | E28: 0 | F28: 1 | G28: 26 | H28: 415 | I28: 404 | J28: (11) | K28: -3%
A29: 0 | B29: 1 | C29: 1 | D29: 1 | E29: 0 | F29: 1 | G29: 27 | H29: 71 | I29: 68 | J29: (3) | K29: -4%
A30: 0 | B30: 1 | C30: 1 | D30: 0 | E30: 1 | F30: 0 | G30: 28 | H30: 692 | I30: 702 | J30: 10 | K30: 1%
A31: 0 | B31: 1 | C31: 1 | D31: 1 | E31: 1 | F31: 0 | G31: 29 | H31: 145 | I31: 138 | J31: (7) | K31: -5%
A32: 0 | B32: 1 | C32: 1 | D32: 0 | E32: 1 | F32: 1 | G32: 30 | H32: 32 | I32: 32 | J32: 0 | K32: 0%
A33: 0 | B33: 1 | C33: 1 | D33: 1 | E33: 1 | F33: 1 | G33: 31 | H33: 2 | I33: 5 | J33: 3 | K33: 150%
A34: 1 | B34: 0 | C34: 0 | D34: 0 | E34: 0 | F34: 0 | G34: 32 | H34: 26,676 | I34: 26,696 | J34: 20 | K34: 0%
A35: 1 | B35: 0 | C35: 0 | D35: 1 | E35: 0 | F35: 0 | G35: 33 | H35: 3,397 | I35: 3,553 | J35: 156 | K35: 5%
A36: 1 | B36: 0 | C36: 0 | D36: 0 | E36: 0 | F36: 1 | G36: 34 | H36: 980 | I36: 1,040 | J36: 60 | K36: 6%
A37: 1 | B37: 0 | C37: 0 | D37: 1 | E37: 0 | F37: 1 | G37: 35 | H37: 185 | I37: 208 | J37: 23 | K37: 12%
A38: 1 | B38: 0 | C38: 0 | D38: 0 | E38: 1 | F38: 0 | G38: 36 | H38: 1,760 | I38: 1,770 | J38: 10 | K38: 1%
A39: 1 | B39: 0 | C39: 0 | D39: 1 | E39: 1 | F39: 0 | G39: 37 | H39: 377 | I39: 446 | J39: 69 | K39: 18%
A40: 1 | B40: 0 | C40: 0 | D40: 0 | E40: 1 | F40: 1 | G40: 38 | H40: 84 | I40: 124 | J40: 40 | K40: 48%
A41: 1 | B41: 0 | C41: 0 | D41: 1 | E41: 1 | F41: 1 | G41: 39 | H41: 11 | I41: 21 | J41: 10 | K41: 91%
A42: 1 | B42: 0 | C42: 1 | D42: 0 | E42: 0 | F42: 0 | G42: 40 | H42: 2,436 | I42: 2,513 | J42: 77 | K42: 3%
A43: 1 | B43: 0 | C43: 1 | D43: 1 | E43: 0 | F43: 0 | G43: 41 | H43: 529 | I43: 499 | J43: (30) | K43: -6%
A44: 1 | B44: 0 | C44: 1 | D44: 0 | E44: 0 | F44: 1 | G44: 42 | H44: 139 | I44: 134 | J44: (5) | K44: -4%
A45: 1 | B45: 0 | C45: 1 | D45: 1 | E45: 0 | F45: 1 | G45: 43 | H45: 19 | I45: 18 | J45: (1) | K45: -5%
A46: 1 | B46: 0 | C46: 1 | D46: 0 | E46: 1 | F46: 0 | G46: 44 | H46: 216 | I46: 253 | J46: 37 | K46: 17%
A47: 1 | B47: 0 | C47: 1 | D47: 1 | E47: 1 | F47: 0 | G47: 45 | H47: 50 | I47: 56 | J47: 6 | K47: 12%
A48: 1 | B48: 0 | C48: 1 | D48: 0 | E48: 1 | F48: 1 | G48: 46 | H48: 9 | I48: 16 | J48: 7 | K48: 78%
A49: 1 | B49: 0 | C49: 1 | D49: 1 | E49: 1 | F49: 1 | G49: 47 | H49: 1 | I49: 0 | J49: (1) | K49: -100%
A50: 1 | B50: 1 | C50: 0 | D50: 0 | E50: 0 | F50: 0 | G50: 48 | H50: 5,245 | I50: 5,313 | J50: 68 | K50: 1%
A51: 1 | B51: 1 | C51: 0 | D51: 1 | E51: 0 | F51: 0 | G51: 49 | H51: 1,226 | I51: 1,267 | J51: 41 | K51: 3%
A52: 1 | B52: 1 | C52: 0 | D52: 0 | E52: 0 | F52: 1 | G52: 50 | H52: 313 | I52: 318 | J52: 5 | K52: 2%
A53: 1 | B53: 1 | C53: 0 | D53: 1 | E53: 0 | F53: 1 | G53: 51 | H53: 58 | I53: 54 | J53: (4) | K53: -7%
A54: 1 | B54: 1 | C54: 0 | D54: 0 | E54: 1 | F54: 0 | G54: 52 | H54: 530 | I54: 636 | J54: 106 | K54: 20%
A55: 1 | B55: 1 | C55: 0 | D55: 1 | E55: 1 | F55: 0 | G55: 53 | H55: 129 | I55: 150 | J55: 21 | K55: 16%
A56: 1 | B56: 1 | C56: 0 | D56: 0 | E56: 1 | F56: 1 | G56: 54 | H56: 32 | I56: 29 | J56: (3) | K56: -9%
A57: 1 | B57: 1 | C57: 0 | D57: 1 | E57: 1 | F57: 1 | G57: 55 | H57: 0 | I57: 0 | J57: 0
A58: 1 | B58: 1 | C58: 1 | D58: 0 | E58: 0 | F58: 0 | G58: 56 | H58: 942 | I58: 899 | J58: (43) | K58: -5%
A59: 1 | B59: 1 | C59: 1 | D59: 1 | E59: 0 | F59: 0 | G59: 57 | H59: 183 | I59: 194 | J59: 11 | K59: 6%
A60: 1 | B60: 1 | C60: 1 | D60: 0 | E60: 0 | F60: 1 | G60: 58 | H60: 33 | I60: 30 | J60: (3) | K60: -9%
A61: 1 | B61: 1 | C61: 1 | D61: 1 | E61: 0 | F61: 1 | G61: 59 | H61: 6 | I61: 4 | J61: (2) | K61: -33%
A62: 1 | B62: 1 | C62: 1 | D62: 0 | E62: 1 | F62: 0 | G62: 60 | H62: 66 | I62: 79 | J62: 13 | K62: 20%
A63: 1 | B63: 1 | C63: 1 | D63: 1 | E63: 1 | F63: 0 | G63: 61 | H63: 3 | I63: 2 | J63: (1) | K63: -33%
A64: 1 | B64: 1 | C64: 1 | D64: 0 | E64: 1 | F64: 1 | G64: 62 | H64: 2 | I64: 4 | J64: 2 | K64: 100%
A65: 1 | B65: 1 | C65: 1 | D65: 1 | E65: 1 | F65: 1 | G65: 63 | H65: 0 | I65: 0 | J65: 0
A66: 2 | B66: 0 | C66: 0 | D66: 0 | E66: 0 | F66: 0 | G66: 64 | H66: 10,753 | I66: 10,787 | J66: 34 | K66: 0%
A67: 2 | B67: 0 | C67: 0 | D67: 1 | E67: 0 | F67: 0 | G67: 65 | H67: 1,934 | I67: 1,981 | J67: =I67-H67 -> 47 | K67: =J67/H67 -> 2%
A68: 2 | B68: 0 | C68: 0 | D68: 0 | E68: 0 | F68: 1 | G68: 66 | H68: 506 | I68: 521 | J68: 15 | K68: 3%
A69: 2 | B69: 0 | C69: 0 | D69: 1 | E69: 0 | F69: 1 | G69: 67 | H69: 91 | I69: 118 | J69: 27 | K69: 30%
A70: 2 | B70: 0 | C70: 0 | D70: 0 | E70: 1 | F70: 0 | G70: 68 | H70: 854 | I70: 889 | J70: 35 | K70: 4%
A71: 2 | B71: 0 | C71: 0 | D71: 1 | E71: 1 | F71: 0 | G71: 69 | H71: 197 | I71: 210 | J71: 13 | K71: 7%
A72: 2 | B72: 0 | C72: 0 | D72: 0 | E72: 1 | F72: 1 | G72: 70 | H72: 37 | I72: 59 | J72: 22 | K72: 59%
A73: 2 | B73: 0 | C73: 0 | D73: 1 | E73: 1 | F73: 1 | G73: 71 | H73: 1 | I73: 3 | J73: 2 | K73: 200%
A74: 2 | B74: 0 | C74: 1 | D74: 0 | E74: 0 | F74: 0 | G74: 72 | H74: 1,492 | I74: 1,560 | J74: 68 | K74: 5%
A75: 2 | B75: 0 | C75: 1 | D75: 1 | E75: 0 | F75: 0 | G75: 73 | H75: 265 | I75: 308 | J75: 43 | K75: 16%
A76: 2 | B76: 0 | C76: 1 | D76: 0 | E76: 0 | F76: 1 | G76: 74 | H76: 57 | I76: 80 | J76: 23 | K76: 40%
A77: 2 | B77: 0 | C77: 1 | D77: 1 | E77: 0 | F77: 1 | G77: 75 | H77: 7 | I77: 2 | J77: (5) | K77: -71%
A78: 2 | B78: 0 | C78: 1 | D78: 0 | E78: 1 | F78: 0 | G78: 76 | H78: 140 | I78: 100 | J78: (40) | K78: -29%
A79: 2 | B79: 0 | C79: 1 | D79: 1 | E79: 1 | F79: 0 | G79: 77 | H79: 3 | I79: 4 | J79: 1 | K79: 33%
A80: 2 | B80: 0 | C80: 1 | D80: 0 | E80: 1 | F80: 1 | G80: 78 | H80: 1 | I80: 1 | J80: 0 | K80: 0%
A81: 2 | B81: 0 | C81: 1 | D81: 1 | E81: 1 | F81: 1 | G81: 79 | H81: 0 | I81: 0 | J81: 0
A82: 2 | B82: 1 | C82: 0 | D82: 0 | E82: 0 | F82: 0 | G82: 80 | H82: 3,421 | I82: 3,566 | J82: 145 | K82: 4%
A83: 2 | B83: 1 | C83: 0 | D83: 1 | E83: 0 | F83: 0 | G83: 81 | H83: 705 | I83: 666 | J83: (39) | K83: -6%
A84: 2 | B84: 1 | C84: 0 | D84: 0 | E84: 0 | F84: 1 | G84: 82 | H84: 152 | I84: 175 | J84: 23 | K84: 15%
A85: 2 | B85: 1 | C85: 0 | D85: 1 | E85: 0 | F85: 1 | G85: 83 | H85: 5 | I85: 5 | J85: 0 | K85: 0%
A86: 2 | B86: 1 | C86: 0 | D86: 0 | E86: 1 | F86: 0 | G86: 84 | H86: 302 | I86: 286 | J86: (16) | K86: -5%
A87: 2 | B87: 1 | C87: 0 | D87: 1 | E87: 1 | F87: 0 | G87: 85 | H87: 4 | I87: 12 | J87: 8 | K87: 200%
A88: 2 | B88: 1 | C88: 0 | D88: 0 | E88: 1 | F88: 1 | G88: 86 | H88: 1 | I88: 3 | J88: 2 | K88: 200%
A89: 2 | B89: 1 | C89: 0 | D89: 1 | E89: 1 | F89: 1 | G89: 87 | H89: 0 | I89: 0 | J89: 0
A90: 2 | B90: 1 | C90: 1 | D90: 0 | E90: 0 | F90: 0 | G90: 88 | H90: 532 | I90: 568 | J90: 36 | K90: 7%
A91: 2 | B91: 1 | C91: 1 | D91: 1 | E91: 0 | F91: 0 | G91: 89 | H91: 11 | I91: 27 | J91: 16 | K91: 145%
A92: 2 | B92: 1 | C92: 1 | D92: 0 | E92: 0 | F92: 1 | G92: 90 | H92: 8 | I92: 11 | J92: 3 | K92: 38%
A93: 2 | B93: 1 | C93: 1 | D93: 1 | E93: 0 | F93: 1 | G93: 91 | H93: 0 | I93: 0 | J93: 0
A94: 2 | B94: 1 | C94: 1 | D94: 0 | E94: 1 | F94: 0 | G94: 92 | H94: 6 | I94: 12 | J94: 6 | K94: 100%
A95: 2 | B95: 1 | C95: 1 | D95: 1 | E95: 1 | F95: 0 | G95: 93 | H95: 0 | I95: 0 | J95: 0
A96: 2 | B96: 1 | C96: 1 | D96: 0 | E96: 1 | F96: 1 | G96: 94 | H96: 0 | I96: 0 | J96: 0
A97: 2 | B97: 1 | C97: 1 | D97: 1 | E97: 1 | F97: 1 | G97: 95 | H97: 0 | I97: 0 | J97: 0
